[Event "Early-Titled-Tuesday-Blitz-November-28-2023"]
[Site "Chess.com"]
[Date "2023.11.28"]
[Round "8"]
[White "Mouse-Sleep"]
[Black "Magila31"]
[Result "1-0"]
[WhiteElo "2555"]
[BlackElo "2355"]
[TimeControl "180+1"]
[EndTime "9:35:24 PST"]
[Termination "Mouse-Sleep won on time"]

1. Nf3 {[%clk 0:02:56.6]} 1... Nf6 {[%clk 0:02:58.9]} 2. c4 {[%clk 0:02:56.6]}
2... g6 {[%clk 0:02:58.2]} 3. Nc3 {[%clk 0:02:57.1]} 3... Bg7 {[%clk 0:02:57.9]}
4. e4 {[%clk 0:02:57.7]} 4... O-O {[%clk 0:02:57.4]} 5. d4 {[%clk 0:02:58.4]}
5... d6 {[%clk 0:02:57.3]} 6. Be2 {[%clk 0:02:58.7]} 6... c5 {[%clk 0:02:54.2]}
7. O-O {[%clk 0:02:58]} 7... Nc6 {[%clk 0:02:51.4]} 8. d5 {[%clk 0:02:57.9]}
8... Na5 {[%clk 0:02:51]} 9. Bg5 {[%clk 0:02:58.2]} 9... h6 {[%clk 0:02:46]} 10.
Bd2 {[%clk 0:02:58.8]} 10... e5 {[%clk 0:02:44.3]} 11. a3 {[%clk 0:02:51.3]}
11... b6 {[%clk 0:02:43.7]} 12. b4 {[%clk 0:02:50.6]} 12... Nb7 {[%clk
0:02:43.4]} 13. Ne1 {[%clk 0:02:50.2]} 13... h5 {[%clk 0:02:31.6]} 14. Nd3
{[%clk 0:02:45.3]} 14... Bd7 {[%clk 0:02:28.1]} 15. bxc5 {[%clk 0:02:41.4]}
15... Nxc5 {[%clk 0:02:26.4]} 16. Nxc5 {[%clk 0:02:41]} 16... dxc5 {[%clk
0:02:22]} 17. a4 {[%clk 0:02:39.8]} 17... a5 {[%clk 0:02:17.4]} 18. Rb1 {[%clk
0:02:37.5]} 18... Ne8 {[%clk 0:02:16.2]} 19. Qb3 {[%clk 0:02:30.6]} 19... Rb8
{[%clk 0:02:14.4]} 20. Be3 {[%clk 0:02:22.7]} 20... Nd6 {[%clk 0:02:12.5]} 21.
f3 {[%clk 0:02:19.8]} 21... Kh7 {[%clk 0:02:09.1]} 22. Qc2 {[%clk 0:02:13]}
22... Bh6 {[%clk 0:02:06.1]} 23. Bxh6 {[%clk 0:02:10.5]} 23... Kxh6 {[%clk
0:02:05.7]} 24. Rb3 {[%clk 0:02:11.4]} 24... f5 {[%clk 0:01:53.1]} 25. Qd2+
{[%clk 0:02:05.6]} 25... Kh7 {[%clk 0:01:49]} 26. Rfb1 {[%clk 0:02:05.5]} 26...
fxe4 {[%clk 0:01:27.7]} 27. fxe4 {[%clk 0:02:04.9]} 27... Qh4 {[%clk 0:01:03.4]}
28. g3 {[%clk 0:01:49.8]} 28... Qh3 {[%clk 0:01:01.1]} 29. Rxb6 {[%clk
0:01:45.1]} 29... Rf2 {[%clk 0:00:48.4]} 30. Kxf2 {[%clk 0:01:31.7]} 30... Qxh2+
{[%clk 0:00:47.9]} 31. Ke1 {[%clk 0:01:31.2]} 31... Qg1+ {[%clk 0:00:45.2]} 32.
Bf1 {[%clk 0:01:18.8]} 32... Rxb6 {[%clk 0:00:37.4]} 33. Rxb6 {[%clk 0:01:12.6]}
33... Nxc4 {[%clk 0:00:37.1]} 34. Qg5 {[%clk 0:00:24.8]} 34... Nxb6 {[%clk
0:00:36.4]} 35. Qe7+ {[%clk 0:00:23.9]} 35... Kg8 {[%clk 0:00:34.1]} 36. Qd8+
{[%clk 0:00:20.3]} 36... Kf7 {[%clk 0:00:30.4]} 37. Qxb6 {[%clk 0:00:20.2]}
37... Qxg3+ {[%clk 0:00:25.3]} 38. Kd2 {[%clk 0:00:18.7]} 38... Qf2+ {[%clk
0:00:20.3]} 39. Be2 {[%clk 0:00:16.4]} 39... Qd4+ {[%clk 0:00:20.3]} 40. Kc2
{[%clk 0:00:16.4]} 40... Bxa4+ {[%clk 0:00:20.3]} 41. Nxa4 {[%clk 0:00:09.8]}
41... Qxa4+ {[%clk 0:00:14.5]} 42. Qb3 {[%clk 0:00:10.7]} 42... Qxe4+ {[%clk
0:00:12.9]} 43. Bd3 {[%clk 0:00:11.4]} 43... Qg2+ {[%clk 0:00:07.8]} 44. Kc3
{[%clk 0:00:11.9]} 44... Ke7 {[%clk 0:00:02.6]} 45. Qb7+ {[%clk 0:00:11.6]}
45... Kd8 {[%clk 0:00:01.1]} 46. Bb5 {[%clk 0:00:03.7]} 1-0

[Event "Early-Titled-Tuesday-Blitz-November-28-2023"]
[Site "Chess.com"]
[Date "2023.11.28"]
[Round "8"]
[White "AndresDelgado77"]
[Black "AlexTruskavetsky"]
[Result "1/2-1/2"]
[WhiteElo "2281"]
[BlackElo "2462"]
[TimeControl "180+1"]
[EndTime "9:35:25 PST"]
[Termination "Game drawn by repetition"]

1. e4 {[%clk 0:03:00]} 1... c5 {[%clk 0:02:59.6]} 2. Nf3 {[%clk 0:02:56.6]} 2...
e6 {[%clk 0:02:58]} 3. c3 {[%clk 0:02:56.3]} 3... d5 {[%clk 0:02:57.6]} 4. e5
{[%clk 0:02:56.2]} 4... Nc6 {[%clk 0:02:57.9]} 5. d4 {[%clk 0:02:54]} 5... Qb6
{[%clk 0:02:57.3]} 6. Bd3 {[%clk 0:02:50.6]} 6... Bd7 {[%clk 0:02:57]} 7. a3
{[%clk 0:02:50.4]} 7... cxd4 {[%clk 0:02:56.6]} 8. O-O {[%clk 0:02:50.3]} 8...
Nge7 {[%clk 0:02:50.1]} 9. Kh1 {[%clk 0:02:48.5]} 9... Ng6 {[%clk 0:02:50.1]}
10. cxd4 {[%clk 0:02:46.3]} 10... f6 {[%clk 0:02:45]} 11. Nc3 {[%clk 0:02:06.5]}
11... fxe5 {[%clk 0:02:43.3]} 12. Bxg6+ {[%clk 0:02:05.9]} 12... hxg6 {[%clk
0:02:43.2]} 13. dxe5 {[%clk 0:02:04.8]} 13... Be7 {[%clk 0:02:27.1]} 14. Qd3
{[%clk 0:02:01.7]} 14... Kf7 {[%clk 0:02:27.2]} 15. Bg5 {[%clk 0:01:46.1]} 15...
Rh5 {[%clk 0:02:23.5]} 16. h4 {[%clk 0:01:13.3]} 16... Rah8 {[%clk 0:02:13.2]}
17. Kg1 {[%clk 0:01:12.7]} 17... Bxg5 {[%clk 0:02:10.4]} 18. Nxg5+ {[%clk
0:01:11]} 18... Rxg5 {[%clk 0:02:07.8]} 19. hxg5 {[%clk 0:01:10.5]} 19... Nxe5
{[%clk 0:02:08.2]} 20. Qg3 {[%clk 0:00:49.3]} 20... Nc4 {[%clk 0:02:07.2]} 21.
Qf4+ {[%clk 0:00:42.6]} 21... Ke7 {[%clk 0:02:01.6]} 22. b3 {[%clk 0:00:39]}
22... Qxb3 {[%clk 0:01:57.5]} 23. Nxd5+ {[%clk 0:00:29.8]} 23... exd5 {[%clk
0:01:57.5]} 24. Rfe1+ {[%clk 0:00:29.2]} 24... Kd8 {[%clk 0:01:57.7]} 25. Rab1
{[%clk 0:00:21.8]} 25... Qc3 {[%clk 0:01:57.6]} 26. Rec1 {[%clk 0:00:15]} 26...
Qe5 {[%clk 0:01:47.4]} 27. Rxc4 {[%clk 0:00:14.5]} 27... Qxf4 {[%clk 0:01:46.3]}
28. Rxf4 {[%clk 0:00:14.3]} 28... b6 {[%clk 0:01:37.4]} 29. Rf7 {[%clk
0:00:12.3]} 29... Rh5 {[%clk 0:01:34.5]} 30. f4 {[%clk 0:00:10.9]} 30... Rh4
{[%clk 0:01:34.6]} 31. g3 {[%clk 0:00:09.6]} 31... Rh3 {[%clk 0:01:30.8]} 32.
Kg2 {[%clk 0:00:09.2]} 32... Rh8 {[%clk 0:01:31.2]} 33. Rxg7 {[%clk 0:00:08.7]}
33... Bf5 {[%clk 0:01:31.3]} 34. Re1 {[%clk 0:00:04.9]} 34... Be4+ {[%clk
0:01:30.4]} 35. Rxe4 {[%clk 0:00:05.3]} 35... dxe4 {[%clk 0:01:30.1]} 36. Rxg6
{[%clk 0:00:05.7]} 36... Ke7 {[%clk 0:01:30.1]} 37. Rg7+ {[%clk 0:00:05.7]}
37... Ke6 {[%clk 0:01:30.2]} 38. Rxa7 {[%clk 0:00:05.8]} 38... Rc8 {[%clk
0:01:30.2]} 39. Ra4 {[%clk 0:00:05.5]} 39... Rc2+ {[%clk 0:01:30.3]} 40. Kf1
{[%clk 0:00:04.8]} 40... Kf5 {[%clk 0:01:30.8]} 41. g6 {[%clk 0:00:04.3]} 41...
Rc3 {[%clk 0:01:25.6]} 42. Kf2 {[%clk 0:00:03.6]} 42... Rc2+ {[%clk 0:01:23.4]}
43. Kg1 {[%clk 0:00:01.7]} 43... Rc6 {[%clk 0:01:21.7]} 44. Kg2 {[%clk
0:00:02.1]} 44... Rxg6 {[%clk 0:01:21.8]} 45. Rb4 {[%clk 0:00:02.5]} 45... Rc6
{[%clk 0:01:20.5]} 46. Rb5+ {[%clk 0:00:02.4]} 46... Kf6 {[%clk 0:01:20.3]} 47.
Kf2 {[%clk 0:00:02.7]} 47... Rc2+ {[%clk 0:01:14.8]} 48. Ke3 {[%clk 0:00:02.9]}
48... Rc3+ {[%clk 0:01:15.3]} 49. Kxe4 {[%clk 0:00:03.1]} 49... Rxg3 {[%clk
0:01:14.8]} 50. Rxb6+ {[%clk 0:00:03.6]} 50... Kf7 {[%clk 0:01:15.3]} 51. a4
{[%clk 0:00:04.2]} 51... Ra3 {[%clk 0:01:15.5]} 52. Rb4 {[%clk 0:00:04.8]} 52...
Kf6 {[%clk 0:01:15.3]} 53. Rb6+ {[%clk 0:00:04.4]} 53... Kf7 {[%clk 0:01:14.8]}
54. Kf5 {[%clk 0:00:04.7]} 54... Rxa4 {[%clk 0:01:14]} 55. Rb7+ {[%clk
0:00:05.2]} 55... Kf8 {[%clk 0:01:14.3]} 56. Kg6 {[%clk 0:00:05.5]} 56... Ra6+
{[%clk 0:01:13.9]} 57. Kg5 {[%clk 0:00:04.9]} 57... Kg8 {[%clk 0:01:14.2]} 58.
f5 {[%clk 0:00:04.5]} 58... Kf8 {[%clk 0:01:14.6]} 59. f6 {[%clk 0:00:03.9]}
59... Ra1 {[%clk 0:01:14.7]} 60. Kg6 {[%clk 0:00:03.8]} 60... Rg1+ {[%clk
0:01:14.6]} 61. Kf5 {[%clk 0:00:04.2]} 61... Rd1 {[%clk 0:01:14.1]} 62. Kg6
{[%clk 0:00:04]} 62... Rg1+ {[%clk 0:01:14.1]} 63. Kf5 {[%clk 0:00:04.3]} 63...
Ke8 {[%clk 0:01:13.5]} 64. Rb8+ {[%clk 0:00:03.8]} 64... Kf7 {[%clk 0:01:13.6]}
65. Rb7+ {[%clk 0:00:04.3]} 65... Kf8 {[%clk 0:01:14]} 66. Rb8+ {[%clk
0:00:04.4]} 66... Kf7 {[%clk 0:01:14.2]} 67. Rb7+ {[%clk 0:00:05]} 67... Ke8
{[%clk 0:01:14.4]} 68. Rb8+ {[%clk 0:00:05.4]} 68... Kf7 {[%clk 0:01:07.7]}
1/2-1/2

[Event "Early-Titled-Tuesday-Blitz-November-28-2023"]
[Site "Chess.com"]
[Date "2023.11.28"]
[Round "8"]
[White "FontVella8"]
[Black "Savagelittlemole"]
[Result "1/2-1/2"]
[WhiteElo "2592"]
[BlackElo "2492"]
[TimeControl "180+1"]
[EndTime "9:35:26 PST"]
[Termination "Game drawn by repetition"]

1. Nf3 {[%clk 0:02:55.9]} 1... c5 {[%clk 0:02:59.5]} 2. b3 {[%clk 0:02:55.8]}
2... Nc6 {[%clk 0:02:58.8]} 3. Bb2 {[%clk 0:02:56.5]} 3... Nf6 {[%clk
0:02:59.1]} 4. e3 {[%clk 0:02:56.7]} 4... d6 {[%clk 0:02:59.1]} 5. c4 {[%clk
0:02:56.9]} 5... e5 {[%clk 0:02:59.1]} 6. Nc3 {[%clk 0:02:57.2]} 6... Be7 {[%clk
0:02:59.4]} 7. Qc2 {[%clk 0:02:57.3]} 7... O-O {[%clk 0:02:59.1]} 8. Be2 {[%clk
0:02:57.5]} 8... h6 {[%clk 0:02:58.8]} 9. h3 {[%clk 0:02:57.5]} 9... Be6 {[%clk
0:02:58.7]} 10. a3 {[%clk 0:02:54.7]} 10... Rb8 {[%clk 0:02:58.5]} 11. g4 {[%clk
0:02:54.1]} 11... d5 {[%clk 0:02:42]} 12. g5 {[%clk 0:02:50.4]} 12... hxg5
{[%clk 0:02:40.2]} 13. Nxg5 {[%clk 0:02:50.8]} 13... d4 {[%clk 0:02:26.8]} 14.
Nxe6 {[%clk 0:02:46.1]} 14... fxe6 {[%clk 0:02:25.9]} 15. Ne4 {[%clk 0:02:46.5]}
15... Nxe4 {[%clk 0:02:07.8]} 16. Qxe4 {[%clk 0:02:46.1]} 16... Bh4 {[%clk
0:02:07.8]} 17. O-O-O {[%clk 0:02:41]} 17... Rxf2 {[%clk 0:01:45]} 18. Bd3
{[%clk 0:02:40.2]} 18... Qf6 {[%clk 0:01:40.3]} 19. Rdf1 {[%clk 0:02:37]} 19...
Kf8 {[%clk 0:01:29.7]} 20. Rxf2 {[%clk 0:02:34]} 20... Bxf2 {[%clk 0:01:29.4]}
21. Rf1 {[%clk 0:02:33.9]} 21... Ke7 {[%clk 0:01:26.9]} 22. b4 {[%clk
0:02:15.5]} 22... Rf8 {[%clk 0:01:13.1]} 23. b5 {[%clk 0:02:02.5]} 23... Nd8
{[%clk 0:01:10.1]} 24. Kc2 {[%clk 0:02:01.3]} 24... g5 {[%clk 0:00:39.6]} 25. a4
{[%clk 0:01:54.9]} 25... Rf7 {[%clk 0:00:30.3]} 26. a5 {[%clk 0:01:50.8]} 26...
b6 {[%clk 0:00:30.5]} 27. Qa8 {[%clk 0:01:37.6]} 27... Ke8 {[%clk 0:00:30.4]}
28. a6 {[%clk 0:01:26.6]} 28... Qf3 {[%clk 0:00:24.5]} 29. Be4 {[%clk 0:01:05]}
29... Qe2 {[%clk 0:00:14.6]} 30. Bd3 {[%clk 0:00:59.6]} 30... Qf3 {[%clk
0:00:13.9]} 31. Qxf3 {[%clk 0:00:12.8]} 31... Rxf3 {[%clk 0:00:14.8]} 32. Be4
{[%clk 0:00:13.1]} 32... Rf8 {[%clk 0:00:14]} 33. Kd3 {[%clk 0:00:13.2]} 33...
Bg3 {[%clk 0:00:10.9]} 34. Rxf8+ {[%clk 0:00:05.5]} 34... Kxf8 {[%clk
0:00:11.8]} 35. Ke2 {[%clk 0:00:06]} 35... Ke7 {[%clk 0:00:10.3]} 36. Kf3 {[%clk
0:00:06.5]} 36... Bh4 {[%clk 0:00:10.4]} 37. Kg4 {[%clk 0:00:06.5]} 37... Kf6
{[%clk 0:00:10.3]} 38. Bc1 {[%clk 0:00:04.1]} 38... Nf7 {[%clk 0:00:10.3]} 39.
d3 {[%clk 0:00:04.1]} 39... Nd6 {[%clk 0:00:09.8]} 40. Bh7 {[%clk 0:00:01.9]}
40... Nf5 {[%clk 0:00:07.2]} 41. e4 {[%clk 0:00:01.2]} 41... Nh6+ {[%clk
0:00:06.1]} 42. Kh5 {[%clk 0:00:01.8]} 42... Nf7 {[%clk 0:00:05.4]} 43. Bg6
{[%clk 0:00:02.4]} 43... Nd6 {[%clk 0:00:04.9]} 44. Bh7 {[%clk 0:00:02.1]} 44...
Nc8 {[%clk 0:00:05.5]} 45. Bd2 {[%clk 0:00:02]} 45... Ne7 {[%clk 0:00:06.1]} 46.
Bc1 {[%clk 0:00:02.5]} 46... Nc8 {[%clk 0:00:06.1]} 47. Bd2 {[%clk 0:00:02.8]}
47... Ne7 {[%clk 0:00:06.6]} 48. Ba5 {[%clk 0:00:01.7]} 48... Nc8 {[%clk
0:00:05.8]} 49. Bd2 {[%clk 0:00:01.8]} 1/2-1/2

[Event "Early-Titled-Tuesday-Blitz-November-28-2023"]
[Site "Chess.com"]
[Date "2023.11.28"]
[Round "8"]
[White "LeoLV10"]
[Black "ViktoriyaTarasova"]
[Result "1-0"]
[WhiteElo "2529"]
[BlackElo "2358"]
[TimeControl "180+1"]
[EndTime "9:35:26 PST"]
[Termination "LeoLV10 won by resignation"]

1. e4 {[%clk 0:03:00.9]} 1... e5 {[%clk 0:02:57.2]} 2. Nf3 {[%clk 0:03:00.7]}
2... Nc6 {[%clk 0:02:57]} 3. Bb5 {[%clk 0:03:01.4]} 3... Nf6 {[%clk 0:02:56.5]}
4. O-O {[%clk 0:03:01.2]} 4... Nxe4 {[%clk 0:02:56.3]} 5. d4 {[%clk 0:03:00.1]}
5... Nd6 {[%clk 0:02:56.4]} 6. Bxc6 {[%clk 0:02:52.9]} 6... dxc6 {[%clk
0:02:55.4]} 7. Nxe5 {[%clk 0:02:53.5]} 7... Be7 {[%clk 0:02:54.4]} 8. Re1 {[%clk
0:02:52.8]} 8... O-O {[%clk 0:02:52.9]} 9. c3 {[%clk 0:02:52.4]} 9... Nf5 {[%clk
0:02:50.2]} 10. Bf4 {[%clk 0:02:51.7]} 10... c5 {[%clk 0:02:47.4]} 11. d5 {[%clk
0:02:46.1]} 11... Bd6 {[%clk 0:02:46.6]} 12. Na3 {[%clk 0:02:37.4]} 12... Nh4
{[%clk 0:02:44.6]} 13. Bg3 {[%clk 0:02:32.7]} 13... Ng6 {[%clk 0:02:41.8]} 14.
Nac4 {[%clk 0:02:29.9]} 14... Nxe5 {[%clk 0:02:36.8]} 15. Bxe5 {[%clk 0:02:26]}
15... Bxe5 {[%clk 0:02:30.3]} 16. Nxe5 {[%clk 0:02:25.8]} 16... Bf5 {[%clk
0:02:28]} 17. c4 {[%clk 0:02:23.9]} 17... Qd6 {[%clk 0:02:25.4]} 18. Qf3 {[%clk
0:02:19.3]} 18... Bg6 {[%clk 0:02:21.2]} 19. h4 {[%clk 0:01:58.8]} 19... Rfe8
{[%clk 0:02:13.5]} 20. Qg3 {[%clk 0:01:58.3]} 20... f6 {[%clk 0:01:55.3]} 21.
Nf3 {[%clk 0:01:54.3]} 21... Qxg3 {[%clk 0:01:50.7]} 22. fxg3 {[%clk 0:01:55.2]}
22... Kf7 {[%clk 0:01:50.3]} 23. Kf2 {[%clk 0:01:55.1]} 23... Rxe1 {[%clk
0:01:48]} 24. Rxe1 {[%clk 0:01:52.9]} 24... Re8 {[%clk 0:01:48.7]} 25. Rxe8
{[%clk 0:01:48]} 25... Kxe8 {[%clk 0:01:48.9]} 26. Ke3 {[%clk 0:01:47.6]} 26...
Kd7 {[%clk 0:01:44.5]} 27. a3 {[%clk 0:01:47.8]} 27... a5 {[%clk 0:01:39.4]} 28.
g4 {[%clk 0:01:45.5]} 28... h6 {[%clk 0:01:36.2]} 29. g5 {[%clk 0:01:42.6]}
29... hxg5 {[%clk 0:01:35.8]} 30. hxg5 {[%clk 0:01:39.7]} 30... Ke7 {[%clk
0:01:28.3]} 31. g3 {[%clk 0:01:29.3]} 31... Bb1 {[%clk 0:01:25.5]} 32. Nd2
{[%clk 0:01:25.1]} 32... Bc2 {[%clk 0:01:24.9]} 33. Kf4 {[%clk 0:01:23.8]} 33...
Bd3 {[%clk 0:01:24.1]} 34. g4 {[%clk 0:01:21.3]} 34... b6 {[%clk 0:01:20.6]} 35.
gxf6+ {[%clk 0:01:21]} 35... gxf6 {[%clk 0:01:13.3]} 36. Ke3 {[%clk 0:01:19.4]}
36... Bc2 {[%clk 0:01:06.3]} 37. Nf1 {[%clk 0:01:07.5]} 37... Kd6 {[%clk
0:01:02.6]} 38. Kf4 {[%clk 0:01:02.6]} 38... Bd3 {[%clk 0:01:01.6]} 39. Ne3
{[%clk 0:01:02.6]} 39... Be2 {[%clk 0:00:57.1]} 40. Kf5 {[%clk 0:00:57.7]} 40...
Ke7 {[%clk 0:00:52.5]} 41. Kg6 {[%clk 0:00:54.9]} 41... Bd3+ {[%clk 0:00:46.3]}
42. Nf5+ {[%clk 0:00:47.2]} 42... Kf8 {[%clk 0:00:38.6]} 43. Kxf6 {[%clk
0:00:47.1]} 43... Bxc4 {[%clk 0:00:38.4]} 44. Ke5 {[%clk 0:00:46.9]} 44... Kf7
{[%clk 0:00:34.4]} 45. Ne3 {[%clk 0:00:39.6]} 45... Be2 {[%clk 0:00:31]} 46. d6
{[%clk 0:00:39.8]} 46... cxd6+ {[%clk 0:00:30.6]} 47. Kxd6 {[%clk 0:00:40.7]}
47... a4 {[%clk 0:00:20.5]} 48. Kc6 {[%clk 0:00:40]} 48... Ke6 {[%clk
0:00:20.6]} 49. Kxb6 {[%clk 0:00:37.3]} 49... c4 {[%clk 0:00:20.7]} 50. Kc5
{[%clk 0:00:35.6]} 50... Ke5 {[%clk 0:00:12.7]} 51. g5 {[%clk 0:00:33.9]} 51...
Ke4 {[%clk 0:00:09.6]} 52. g6 {[%clk 0:00:31.2]} 52... Bh5 {[%clk 0:00:04.4]}
53. g7 {[%clk 0:00:28.6]} 53... Bf7 {[%clk 0:00:05.1]} 54. Nxc4 {[%clk
0:00:27.2]} 54... Kd3 {[%clk 0:00:05.2]} 55. Ne5+ {[%clk 0:00:23.6]} 1-0

[Event "Early-Titled-Tuesday-Blitz-November-28-2023"]
[Site "Chess.com"]
[Date "2023.11.28"]
[Round "8"]
[White "kingofthenil"]
[Black "Chessmissile07"]
[Result "0-1"]
[WhiteElo "2717"]
[BlackElo "2859"]
[TimeControl "180+1"]
[EndTime "9:35:27 PST"]
[Termination "Chessmissile07 won on time"]

1. e4 {[%clk 0:03:00.9]} 1... a6 {[%clk 0:03:00.9]} 2. d4 {[%clk 0:02:56.3]}
2... e6 {[%clk 0:02:53.8]} 3. Nd2 {[%clk 0:02:43.8]} 3... d5 {[%clk 0:02:45.9]}
4. Ngf3 {[%clk 0:02:42.4]} 4... c5 {[%clk 0:02:44.5]} 5. dxc5 {[%clk 0:02:41.2]}
5... Bxc5 {[%clk 0:02:44.1]} 6. Bd3 {[%clk 0:02:41.4]} 6... Nc6 {[%clk
0:02:42.2]} 7. O-O {[%clk 0:02:41.6]} 7... Nf6 {[%clk 0:02:35.3]} 8. e5 {[%clk
0:02:33.7]} 8... Nd7 {[%clk 0:02:34.5]} 9. Re1 {[%clk 0:02:34.1]} 9... b5 {[%clk
0:02:26.5]} 10. a4 {[%clk 0:02:32.7]} 10... Qb6 {[%clk 0:02:19.9]} 11. Qe2
{[%clk 0:02:26.2]} 11... Bb7 {[%clk 0:02:19.5]} 12. Nb3 {[%clk 0:02:24.4]} 12...
b4 {[%clk 0:01:59.9]} 13. a5 {[%clk 0:02:21.2]} 13... Qc7 {[%clk 0:01:56.3]} 14.
Nxc5 {[%clk 0:02:16.3]} 14... Nxc5 {[%clk 0:01:57.2]} 15. Be3 {[%clk 0:02:12.1]}
15... Nxa5 {[%clk 0:01:51.5]} 16. Nd4 {[%clk 0:02:08.2]} 16... O-O {[%clk
0:01:39.3]} 17. Qh5 {[%clk 0:02:05.2]} 17... Nxd3 {[%clk 0:01:35.3]} 18. cxd3
{[%clk 0:02:03.4]} 18... Nc6 {[%clk 0:01:33.1]} 19. Rac1 {[%clk 0:01:54.6]}
19... Qxe5 {[%clk 0:01:31.2]} 20. Qg4 {[%clk 0:01:41.3]} 20... h5 {[%clk
0:01:21.4]} 21. Qh4 {[%clk 0:01:32.9]} 21... Rac8 {[%clk 0:01:15.2]} 22. Nxc6
{[%clk 0:01:14.3]} 22... Rxc6 {[%clk 0:01:16.1]} 23. Qxb4 {[%clk 0:01:14.2]}
23... Rfc8 {[%clk 0:01:16.1]} 24. Rxc6 {[%clk 0:00:33.4]} 24... Bxc6 {[%clk
0:01:17]} 25. Rc1 {[%clk 0:00:07.6]} 25... Rb8 {[%clk 0:00:57.7]} 26. Qf4 {[%clk
0:00:07.6]} 26... Qxf4 {[%clk 0:00:45.7]} 27. Bxf4 {[%clk 0:00:08.5]} 27... Rb4
{[%clk 0:00:45.8]} 28. Rxc6 {[%clk 0:00:03]} 28... Rxf4 {[%clk 0:00:45.6]} 29.
Rxa6 {[%clk 0:00:02.2]} 29... Rb4 {[%clk 0:00:45.8]} 30. Ra2 {[%clk 0:00:01.7]}
30... Rb3 {[%clk 0:00:46.1]} 31. Kf1 {[%clk 0:00:01.4]} 31... Rxd3 {[%clk
0:00:46.3]} 32. Ke2 {[%clk 0:00:02.3]} 32... Rd4 {[%clk 0:00:44.9]} 33. b3
{[%clk 0:00:02.2]} 33... Rb4 {[%clk 0:00:44.5]} 34. Rb2 {[%clk 0:00:01.7]} 34...
Kf8 {[%clk 0:00:44.9]} 35. Kd3 {[%clk 0:00:01.8]} 35... Ke7 {[%clk 0:00:45.3]}
36. Kc3 {[%clk 0:00:01.4]} 36... Rb7 {[%clk 0:00:45.8]} 37. b4 {[%clk
0:00:02.2]} 37... Kd6 {[%clk 0:00:46.2]} 38. f4 {[%clk 0:00:01.7]} 38... Rc7+
{[%clk 0:00:44.4]} 39. Kb3 {[%clk 0:00:01.3]} 39... Rc4 {[%clk 0:00:44]} 40. g3
{[%clk 0:00:01.6]} 40... Kc6 {[%clk 0:00:41.4]} 41. Ra2 {[%clk 0:00:01.8]} 41...
Kb7 {[%clk 0:00:41.7]} 42. Ra5 {[%clk 0:00:01.8]} 42... Rc1 {[%clk 0:00:37.9]}
43. f5 {[%clk 0:00:02]} 43... Rh1 {[%clk 0:00:36.6]} 44. fxe6 {[%clk 0:00:02.9]}
44... fxe6 {[%clk 0:00:37.2]} 45. Kc3 {[%clk 0:00:02.9]} 45... Rxh2 {[%clk
0:00:36.8]} 46. Kd4 {[%clk 0:00:03.4]} 46... Rc2 {[%clk 0:00:36.4]} 47. Ke5
{[%clk 0:00:03.2]} 47... Re2+ {[%clk 0:00:35.3]} 48. Kd6 {[%clk 0:00:03.2]}
48... Kb6 {[%clk 0:00:34]} 49. Ra8 {[%clk 0:00:02.8]} 49... Kb5 {[%clk
0:00:33.5]} 50. Rb8+ {[%clk 0:00:03.1]} 50... Kc4 {[%clk 0:00:34]} 51. b5 {[%clk
0:00:03.4]} 51... d4 {[%clk 0:00:30.1]} 52. b6 {[%clk 0:00:03.7]} 52... Kb5
{[%clk 0:00:30.6]} 53. b7 {[%clk 0:00:01.6]} 53... Kb6 {[%clk 0:00:29.2]} 0-1

[Event "Early-Titled-Tuesday-Blitz-November-28-2023"]
[Site "Chess.com"]
[Date "2023.11.28"]
[Round "8"]
[White "Olya_Oblachko"]
[Black "Elbebiber"]
[Result "1/2-1/2"]
[WhiteElo "2233"]
[BlackElo "2118"]
[TimeControl "180+1"]
[EndTime "9:35:30 PST"]
[Termination "Game drawn by repetition"]

1. Nf3 {[%clk 0:03:00.9]} 1... Nf6 {[%clk 0:02:57.8]} 2. g3 {[%clk 0:03:00]}
2... b6 {[%clk 0:02:57.3]} 3. Bg2 {[%clk 0:02:56]} 3... Bb7 {[%clk 0:02:57.4]}
4. c4 {[%clk 0:02:55.2]} 4... e6 {[%clk 0:02:56.5]} 5. O-O {[%clk 0:02:52.9]}
5... Be7 {[%clk 0:02:52.4]} 6. Nc3 {[%clk 0:02:52.2]} 6... O-O {[%clk
0:02:49.9]} 7. Re1 {[%clk 0:02:52.3]} 7... d5 {[%clk 0:02:41.6]} 8. cxd5 {[%clk
0:02:41.2]} 8... exd5 {[%clk 0:02:40]} 9. d4 {[%clk 0:02:40.3]} 9... Bb4 {[%clk
0:02:14.9]} 10. a3 {[%clk 0:02:15]} 10... Bxc3 {[%clk 0:02:14.7]} 11. bxc3
{[%clk 0:02:15.9]} 11... Ne4 {[%clk 0:02:12.7]} 12. Qc2 {[%clk 0:02:14.8]} 12...
Nd7 {[%clk 0:02:06.8]} 13. c4 {[%clk 0:02:08.3]} 13... dxc4 {[%clk 0:01:50.9]}
14. Qxc4 {[%clk 0:02:09.2]} 14... Ndf6 {[%clk 0:01:49.9]} 15. Qc2 {[%clk
0:02:00.6]} 15... c5 {[%clk 0:01:40.7]} 16. Rd1 {[%clk 0:01:37.3]} 16... Qe7
{[%clk 0:01:27.4]} 17. dxc5 {[%clk 0:01:29.3]} 17... Qxc5 {[%clk 0:01:22.6]} 18.
Qxc5 {[%clk 0:01:23.4]} 18... Nxc5 {[%clk 0:01:22.3]} 19. Be3 {[%clk 0:01:14.7]}
19... Rac8 {[%clk 0:01:13.5]} 20. a4 {[%clk 0:01:10.8]} 20... Nd5 {[%clk
0:01:01.4]} 21. Bd4 {[%clk 0:00:50.9]} 21... Nb4 {[%clk 0:00:54.8]} 22. Rab1
{[%clk 0:00:35.1]} 22... Nc2 {[%clk 0:00:48.2]} 23. Be5 {[%clk 0:00:23.9]} 23...
Nxa4 {[%clk 0:00:39.6]} 24. Ra1 {[%clk 0:00:19.7]} 24... b5 {[%clk 0:00:36.1]}
25. Nd4 {[%clk 0:00:14.2]} 25... Bxg2 {[%clk 0:00:32.7]} 26. Kxg2 {[%clk
0:00:12.7]} 26... Nxd4 {[%clk 0:00:30.3]} 27. Bxd4 {[%clk 0:00:13.6]} 27... a6
{[%clk 0:00:30.2]} 28. Be5 {[%clk 0:00:08.7]} 28... Rfd8 {[%clk 0:00:28.8]} 29.
Bd4 {[%clk 0:00:06.2]} 29... Kf8 {[%clk 0:00:27.6]} 30. e3 {[%clk 0:00:06.4]}
30... f6 {[%clk 0:00:27.4]} 31. f4 {[%clk 0:00:06.4]} 31... Kf7 {[%clk
0:00:27.9]} 32. Kf3 {[%clk 0:00:06.8]} 32... Rd7 {[%clk 0:00:26.1]} 33. g4
{[%clk 0:00:07.3]} 33... Rc4 {[%clk 0:00:24.9]} 34. h4 {[%clk 0:00:06.2]} 34...
Rdc7 {[%clk 0:00:20]} 35. g5 {[%clk 0:00:06]} 35... f5 {[%clk 0:00:17.2]} 36. h5
{[%clk 0:00:04.5]} 36... Rd7 {[%clk 0:00:14.8]} 37. g6+ {[%clk 0:00:04.8]} 37...
hxg6 {[%clk 0:00:14.9]} 38. hxg6+ {[%clk 0:00:05.7]} 38... Ke6 {[%clk
0:00:12.8]} 39. Rh1 {[%clk 0:00:05.6]} 39... Rb4 {[%clk 0:00:09.4]} 40. Rh7
{[%clk 0:00:05]} 40... Rb3 {[%clk 0:00:09.2]} 41. Bxg7 {[%clk 0:00:03.6]} 41...
Rdd3 {[%clk 0:00:08.6]} 42. Be5 {[%clk 0:00:02.5]} 42... Rxe3+ {[%clk
0:00:08.5]} 43. Kf2 {[%clk 0:00:03.4]} 43... Rf3+ {[%clk 0:00:08.7]} 44. Ke2
{[%clk 0:00:03.4]} 44... Rbe3+ {[%clk 0:00:07.6]} 45. Kd2 {[%clk 0:00:03.8]}
45... Rd3+ {[%clk 0:00:07]} 46. Ke2 {[%clk 0:00:03.4]} 46... Rde3+ {[%clk
0:00:07.4]} 47. Kd2 {[%clk 0:00:03.7]} 47... Rd3+ {[%clk 0:00:06.1]} 48. Ke2
{[%clk 0:00:04.1]} 48... Rde3+ {[%clk 0:00:03.8]} 1/2-1/2